bitfinex/quotes_BTCUSD_20260315
["timestamp","ask_amount","ask_price","bid_price","bid_amount"]
[1773570809292,0.10078565,71808.0,71784.0,0.00085888]
[1773570809959,0.06963012,71808.0,71784.0,0.00085888]
[1773570810158,0.06963012,71808.0,71783.0,0.06965437]
[1773570810159,0.06963012,71808.0,71786.0,0.00085956]
[1773570810324,0.06963012,71808.0,71786.0,0.00071048]
[1773570810524,0.06963012,71808.0,71788.0,0.00071048]
[1773570810741,0.06963012,71808.0,71790.0,0.00071048]
[1773570811407,0.06963012,71808.0,71789.0,0.0014]
[1773570812558,0.06963012,71808.0,71790.0,0.06964758]
[1773570814445,0.06963012,71808.0,71790.0,0.03746386]
[1773570816793,0.06985013,71809.0,71790.0,0.03746386]
[1773570817533,0.00022001,71807.0,71790.0,0.03746386]
[1773570818125,0.00022001,71807.0,71790.0,0.03846386]
[1773570819317,0.06963206,71806.0,71790.0,0.03746386]
[1773570822314,0.06636934,71805.0,71790.0,0.03746386]
[1773570822522,0.06636934,71805.0,71790.0,0.03731478]
[1773570822925,0.06636934,71805.0,71790.0,0.03716571]
[1773570823454,0.06636934,71805.0,71790.0,0.03816571]
[1773570823632,0.06636934,71805.0,71791.0,0.0014]
[1773570824471,0.06636934,71805.0,71790.0,0.001]
[1773570824472,0.069634,71804.0,71790.0,0.001]
[1773570824615,0.06632291,71803.0,71792.0,0.0014]
[1773570825038,0.06632291,71803.0,71793.0,0.0014]
[1773570825577,0.06632291,71803.0,71794.0,0.0014]
[1773570825781,0.06632291,71803.0,71795.0,0.0014]
[1773570825979,0.06632291,71803.0,71796.0,0.0014]
[1773570826569,0.13591396,71802.0,71796.0,0.0014]
[1773570827171,0.13591396,71802.0,71796.0,0.0017572]
[1773570828227,0.06963503,71803.0,71796.0,0.0017572]
[1773570828367,0.069634,71805.0,71796.0,0.0713989]
[1773570828563,0.00022001,71807.0,71796.0,0.0713989]
[1773570829189,0.06985122,71807.0,71796.0,0.0713989]
[1773570837243,0.06985122,71807.0,71796.0,0.07124986]
[1773570837644,0.06985122,71807.0,71796.0,0.07110083]
[1773570838138,0.06985122,71807.0,71796.0,0.07095182]
[1773570838347,5e-05,71812.0,71796.0,0.07065382]
[1773570839424,5e-05,71812.0,71796.0,0.07165382]
[1773570839802,5e-05,71812.0,71796.0,0.07065382]
[1773570840090,5e-05,71812.0,71796.0,0.07165382]
[1773570840666,5e-05,71812.0,71796.0,0.07150475]
[1773570842690,5e-05,71812.0,71797.0,0.0014]
[1773570843474,0.00027001,71812.0,71797.0,0.0014]
[1773570844891,0.00027001,71812.0,71798.0,0.06963982]
[1773570846813,0.00027001,71812.0,71791.0,0.06964661]
[1773570847018,0.00027001,71812.0,71793.0,0.0014]
[1773570847372,0.00027001,71812.0,71794.0,0.00125099]
[1773570847806,0.00027001,71812.0,71792.0,0.06974884]
[1773570848004,0.00027001,71812.0,71793.0,0.0014]
[1773570848416,0.00027001,71812.0,71794.0,0.0014]
[1773570849220,0.00027001,71812.0,71795.0,0.06964273]
[1773570849386,0.00027001,71812.0,71796.0,0.0014]
[1773570849584,0.00027001,71812.0,71797.0,0.0014]
[1773570850282,0.00027001,71812.0,71798.0,0.0014]
[1773570850817,0.00027001,71812.0,71799.0,0.0014]
[1773570851017,0.00027001,71812.0,71800.0,0.06963788]
[1773570851418,0.00027001,71812.0,71801.0,0.0014]
[1773570851936,0.00027001,71812.0,71802.0,0.0014]
[1773570852430,0.00027001,71812.0,71803.0,0.0014]
[1773570852612,0.00062081,71812.0,71803.0,0.0014]
[1773570852814,0.00062081,71812.0,71800.0,0.06963788]
[1773570853033,0.00062081,71812.0,71801.0,0.0014]
[1773570853232,0.00062081,71812.0,71802.0,0.06963594]
[1773570853412,0.00022001,71815.0,71803.0,0.0014]
[1773570854995,0.00022001,71815.0,71803.0,0.00110203]
[1773570855438,1e-08,71815.0,71804.0,0.069634]
[1773570855767,0.00056001,71817.0,71804.0,0.069634]
[1773570856286,0.00022001,71815.0,71804.0,0.069634]
[1773570863210,0.00022001,71815.0,71804.0,0.06948502]
[1773570864810,0.00022001,71815.0,71805.0,0.0014]
[1773570868330,0.00022001,71815.0,71806.0,0.06963206]
[1773570876419,0.00022001,71815.0,71806.0,0.06933413]
[1773570879038,1e-08,71817.0,71806.0,0.06933413]
[1773570880246,1e-08,71817.0,71806.0,0.07033413]
[1773570880442,1e-08,71817.0,71806.0,0.06933413]
[1773570880736,1e-08,71817.0,71806.0,0.07033413]
[1773570881869,1e-08,71817.0,71806.0,0.06933413]
[1773570882236,1e-08,71817.0,71806.0,0.07033413]
[1773570882433,1e-08,71817.0,71806.0,0.06933413]
[1773570882835,1e-08,71817.0,71806.0,0.07033413]
[1773570883033,1e-08,71817.0,71806.0,0.06933413]
[1773570883434,1e-08,71817.0,71806.0,0.07033413]
[1773570883794,1e-08,71817.0,71806.0,0.06933413]
[1773570883980,1e-08,71817.0,71806.0,0.07033413]
[1773570885580,0.02,73600.0,71806.0,0.07033413]
[1773570885779,0.09558791,71823.0,71806.0,0.06933413]
[1773570885996,0.09558791,71823.0,71806.0,0.07033413]
[1773570886362,0.09558791,71823.0,71806.0,0.06933413]
[1773570886661,0.09558791,71823.0,71806.0,0.07033413]
[1773570886861,0.09558791,71823.0,71806.0,0.06933413]
[1773570887297,0.09558791,71823.0,71806.0,0.07033413]
[1773570889061,0.09558791,71823.0,71807.0,0.0014]
[1773570889614,0.09558791,71823.0,71807.0,0.00125105]
[1773570890308,0.09558791,71823.0,71807.0,0.00210207]
[1773570891195,0.09558791,71823.0,71808.0,0.06963012]
[1773570891611,0.09558791,71823.0,71804.0,0.0002]
[1773570891612,0.09555253,71822.0,71804.0,0.06963358]
[1773570891804,0.09555253,71822.0,71805.0,0.0014]
[1773570892004,0.09555253,71822.0,71801.0,0.06963691]
[1773570892005,0.09555253,71822.0,71806.0,0.0014]
[1773570892368,0.09555253,71822.0,71801.0,0.06963691]
[1773570892566,0.09555253,71822.0,71802.0,0.0014]
[1773570892990,0.09568193,71822.0,71803.0,0.0014]
[1773570893190,0.09568193,71822.0,71803.0,0.0016]
[1773570893388,0.09568193,71822.0,71804.0,0.069634]
[1773570893389,0.06961752,71821.0,71804.0,0.069634]
[1773570893594,0.03032609,71820.0,71805.0,0.0014]
[1773570893996,0.03045549,71820.0,71806.0,0.0014]
[1773570894420,0.03045549,71820.0,71807.0,0.0014]
[1773570894818,0.03045549,71820.0,71803.0,0.06983488]
[1773570895027,0.03045549,71820.0,71804.0,0.0014]
[1773570895431,0.06961946,71819.0,71805.0,0.0014]
[1773570895974,0.06961946,71819.0,71806.0,0.0014]
[1773570896484,0.06961946,71819.0,71807.0,0.0014]
[1773570897002,0.06961946,71819.0,71808.0,0.0014]
[1773570897348,0.06961946,71819.0,71803.0,0.06983488]
[1773570897544,0.06961946,71819.0,71805.0,0.06963303]
[1773570897974,0.06961946,71819.0,71806.0,0.0014]
[1773570898370,0.06961946,71819.0,71807.0,0.0014]
[1773570898833,0.06961946,71819.0,71803.0,0.06983416]
[1773570898958,0.06961946,71819.0,71808.0,0.0014]
[1773570899358,0.06961946,71819.0,71809.0,0.0014]
[1773570899894,0.06961946,71819.0,71810.0,0.0014]
[1773570900265,0.06961946,71819.0,71804.0,0.0014]
[1773570900463,0.06961946,71819.0,71799.0,0.06963844]
[1773570900684,0.06961946,71819.0,71797.0,0.06964024]
[1773570900685,0.06961946,71819.0,71800.0,0.0014]
[1773570901105,0.06961946,71819.0,71799.0,0.06963844]
[1773570901106,0.06961946,71819.0,71799.0,0.11763962]
[1773570901442,0.06961946,71819.0,71802.0,0.04800118]
[1773570902786,0.06961946,71819.0,71803.0,0.06963497]
[1773570903209,0.06961946,71819.0,71803.0,0.11756167]
[1773570904628,0.06961946,71819.0,71804.0,0.0479267]
[1773570906463,0.0001294,71820.0,71806.0,0.0479267]
[1773570906639,0.00022001,71822.0,71806.0,0.0479267]
[1773570907839,0.00022001,71822.0,71808.0,0.0479267]
[1773570909371,0.00022001,71822.0,71809.0,0.06962915]
[1773570909580,0.00022001,71824.0,71810.0,0.0479267]
[1773570910340,0.00022001,71824.0,71809.0,0.06962915]
[1773570910539,0.00022001,71824.0,71810.0,0.03072371]
[1773570914937,0.00022001,71824.0,71812.0,0.03072371]
[1773570915111,0.00022001,71824.0,71814.0,0.03072371]
[1773570916206,0.0003564,71824.0,71814.0,0.03072371]
[1773570916396,0.00057641,71824.0,71814.0,0.03072371]
[1773570917497,0.00057641,71824.0,71815.0,0.06962333]
[1773570917702,0.00057641,71824.0,71816.0,0.03072371]
[1773570919334,0.06140328,71832.0,71816.0,0.03072371]
[1773570919503,0.06140328,71832.0,71816.0,0.03108011]
[1773570920352,0.06960298,71836.0,71817.0,0.06962139]
[1773570920519,0.06960298,71836.0,71818.0,0.03072371]
[1773570920723,0.06960298,71836.0,71819.0,0.0014]
[1773570921124,0.06960298,71836.0,71820.0,0.03072371]
[1773570922467,0.01123132,71834.0,71820.0,0.06961849]
[1773570923753,0.01145133,71834.0,71820.0,0.06961849]
[1773570924613,0.00022001,71839.0,71822.0,0.02714317]
[1773570925393,0.0695898,71850.0,71823.0,0.02714317]
[1773570925594,0.06977128,71848.0,71825.0,0.02714317]
[1773570925760,0.06959353,71846.0,71825.0,0.02714317]
[1773570926479,0.06977128,71848.0,71826.0,0.06961267]
[1773570926680,0.06977128,71848.0,71827.0,0.02714317]
[1773570927475,0.06977128,71848.0,71828.0,0.0014]
[1773570927677,0.06977128,71848.0,71829.0,0.02714317]
[1773570930962,0.0001794,71848.0,71831.0,0.02714317]
[1773570931160,0.00022001,71844.0,71831.0,0.02714317]
[1773570933138,0.00022001,71844.0,71832.0,0.06960686]
[1773570933341,0.00022001,71844.0,71833.0,0.02714317]
[1773570936544,0.00022001,71844.0,71835.0,0.02714317]
[1773570936748,0.01620705,71855.0,71835.0,0.02714317]
[1773570936749,0.01572385,71856.0,71835.0,0.02750517]
[1773570937665,0.01572385,71856.0,71836.0,0.0014]
[1773570937847,0.01572385,71856.0,71837.0,0.02714317]
[1773570938041,0.01594386,71856.0,71837.0,0.02714317]
[1773570938291,0.01594386,71856.0,71838.0,0.0014]
[1773570938292,0.01555507,71855.0,71838.0,0.0014]
[1773570939007,0.01555507,71853.0,71839.0,0.06960007]
[1773570939371,0.01555507,71853.0,71839.0,0.06970715]
[1773570940892,0.01503281,71851.0,71840.0,0.0014]
[1773570941073,0.01513969,71851.0,71841.0,0.0014]
[1773570941910,0.01513969,71851.0,71842.0,0.0014]
[1773570942566,0.01513969,71851.0,71836.0,0.0696029]
[1773570942766,0.01513969,71851.0,71837.0,0.0014]
[1773570943181,0.06958942,71850.0,71838.0,0.0014]
[1773570943504,0.06958942,71850.0,71830.0,0.09675163]
[1773570943505,0.06958942,71850.0,71839.0,0.0014]
[1773570943934,0.4170741,71921.0,71839.0,0.0014]
[1773570944144,0.1041,73500.0,71839.0,0.0014]
[1773570944145,0.0014,71858.0,71839.0,0.00150688]
[1773570944955,0.00219422,71857.0,71839.0,0.00150688]
[1773570945123,0.06958361,71856.0,71839.0,0.07110621]
[1773570945327,0.00219422,71855.0,71839.0,0.07110621]
[1773570945505,0.00022001,71852.0,71839.0,0.06970621]
[1773570945721,0.00022001,71852.0,71840.0,0.0014]
[1773570946096,0.00022001,71852.0,71841.0,0.0014]
[1773570947546,0.06958845,71851.0,71839.0,0.00010688]
[1773570947858,0.06958845,71851.0,71840.0,0.0014]
[1773570948610,0.06958845,71851.0,71839.0,0.00010688]
[1773570948611,0.06958845,71851.0,71841.0,0.0014]
[1773570949054,0.06958845,71851.0,71839.0,0.00010688]
[1773570949353,0.06958845,71851.0,71842.0,0.0014]
[1773570949557,0.06958845,71851.0,71838.0,0.00015958]
[1773570949767,0.06969547,71851.0,71840.0,0.05894436]
[1773570949995,0.0707037,71851.0,71838.0,0.00015958]
[1773570950131,0.06969547,71851.0,71838.0,0.0014]
[1773570950335,0.07109547,71851.0,71831.0,0.06960766]
[1773570950569,0.07109547,71851.0,71832.0,0.0014]
[1773570951238,0.07109547,71851.0,71833.0,0.0014]
[1773570952843,0.07109547,71851.0,71833.0,0.0016]
[1773570953248,0.07131548,71851.0,71833.0,0.0016]
[1773570959488,0.07131548,71851.0,71834.0,0.0014]
[1773570961193,0.07131548,71851.0,71828.0,0.00016723]
[1773570961413,0.07131548,71851.0,71825.0,0.06986335]
[1773570961414,0.21025893,71851.0,71826.0,0.0014]
[1773570961638,0.13894345,71850.0,71826.0,0.0002]
[1773570961854,0.0057004,71849.0,71827.0,0.0014]
[1773570962252,0.0057004,71849.0,71828.0,0.0014]
[1773570963160,0.06959135,71848.0,71828.0,0.07100997]
[1773570964459,0.06959135,71848.0,71828.0,0.0014]
[1773570964629,0.06959135,71848.0,71826.0,0.06981236]
[1773570964630,0.06959135,71848.0,71826.0,0.0016]
[1773570964829,0.06959135,71848.0,71827.0,0.0014]
[1773570965271,0.06959135,71848.0,71826.0,0.0002]
[1773570966062,0.20847752,71848.0,71826.0,0.0002]
[1773570968391,0.20947752,71848.0,71826.0,0.0002]
[1773570970206,0.20947752,71848.0,71827.0,0.0696117]
[1773570970364,0.0014,71847.0,71829.0,0.02774058]
[1773570976355,0.06959329,71846.0,71829.0,0.02774058]
[1773570976654,0.06959329,71846.0,71829.0,0.09735012]
[1773570977636,0.06959329,71846.0,71830.0,0.0014]
[1773570979260,0.09343269,71846.0,71830.0,0.0014]
[1773570986329,0.23244538,71846.0,71830.0,0.0014]
[1773570986510,0.09343269,71846.0,71830.0,0.0014]
[1773570987074,0.0014,71845.0,71830.0,0.0014]
[1773570989381,0.06959523,71844.0,71830.0,0.0014]
[1773570989845,0.20860792,71844.0,71830.0,0.0014]
[1773570990997,0.20860792,71844.0,71818.0,0.06981974]
[1773570990998,0.02280579,71843.0,71818.0,0.06981974]
[1773570991197,0.02280579,71843.0,71824.0,0.0014]
[1773570991376,0.02280579,71841.0,71824.0,0.0014]
[1773570992690,0.20860986,71842.0,71825.0,0.0002]
[1773570992860,0.16178614,71841.0,71825.0,0.0002]
[1773570993214,0.13901269,71840.0,71825.0,0.0002]
[1773570993361,0.07100007,71839.0,71825.0,0.0002]
[1773570993563,0.21001276,71839.0,71825.0,0.0002]
[1773570993785,0.13901269,71838.0,71825.0,0.0002]
[1773570993955,0.21001276,71839.0,71825.0,0.0002]
[1773570994965,0.001,71838.0,71825.0,0.0002]
[1773570995164,0.21001276,71839.0,71825.0,0.0002]
[1773570995567,0.05607856,71838.0,71825.0,0.0002]
[1773570996180,0.05707856,71838.0,71825.0,0.0002]
[1773570997184,0.05607856,71838.0,71825.0,0.0002]
[1773570997646,0.05998821,71836.0,71825.0,0.0002]
[1773570997997,0.05998821,71836.0,71820.0,0.00025]
[1773570998602,0.05998821,71836.0,71820.0,0.0002]
[1773570998805,0.06098821,71836.0,71820.0,0.0002]
[1773570999121,0.05998821,71836.0,71820.0,0.0002]
[1773570999837,0.05994386,71834.0,71820.0,0.0002]
[1773571000038,0.05994386,71832.0,71820.0,0.0002]
[1773571002461,0.06960782,71831.0,71820.0,0.0002]
[1773571002674,0.05989801,71830.0,71820.0,0.0002]
[1773571004562,0.06960976,71829.0,71820.0,0.0002]
[1773571005123,0.129461,71829.0,71820.0,0.0002]
[1773571005723,0.12950568,71829.0,71820.0,0.0002]
[1773571010272,0.05971072,71828.0,71820.0,0.0002]
[1773571012889,4.468e-05,71829.0,71820.0,0.0002]
[1773571019196,0.00026469,71829.0,71820.0,0.0002]
[1773571020207,0.06961073,71828.0,71820.0,0.0002]
[1773571041875,0.06983074,71828.0,71820.0,0.0002]
[1773571047909,0.06983074,71828.0,71820.0,5.111e-05]
[1773571048059,0.0639915,71827.0,71820.0,5.111e-05]
[1773571048497,0.06987542,71829.0,71820.0,5.111e-05]
[1773571048702,0.04961073,71828.0,71820.0,5.111e-05]
[1773571048855,0.01456989,71828.0,71820.0,5.111e-05]
[1773571050114,0.06960433,71835.0,71820.0,5.111e-05]
[1773571050115,0.06960395,71835.0,71820.0,5.111e-05]
[1773571050275,0.00022001,71828.0,71820.0,9.579e-05]
[1773571050994,0.00022001,71828.0,71821.0,0.0014]
[1773571051304,0.00022001,71828.0,71822.0,0.0014]
[1773571054894,0.0696117,71827.0,71822.0,0.0014]
[1773571061399,0.15404622,71827.0,71821.0,0.0014]
[1773571063058,0.15404622,71827.0,71815.0,0.06962325]
[1773571063282,0.15404622,71827.0,70190.0,0.05]
[1773571063283,0.08443641,71826.0,71807.0,0.0014]
[1773571063519,0.09848969,71826.0,71807.0,0.0014]
[1773571063733,0.2102114,71827.0,71809.0,0.0015146]
[1773571063912,0.09848969,71826.0,71809.0,0.0015146]
[1773571064094,0.09848969,71825.0,71809.0,0.0015146]
[1773571064303,0.09848969,71825.0,71812.0,0.0002]
[1773571064701,0.09848969,71825.0,71809.0,0.0015146]
[1773571065372,0.09848969,71823.0,71809.0,0.0001146]
[1773571067464,0.06961655,71822.0,71809.0,0.0001146]
[1773571067734,0.06961655,71822.0,71805.0,0.0002]
[1773571067735,0.09851767,71821.0,71805.0,0.0002]
[1773571067951,0.0014,71820.0,71805.0,0.0002]
[1773571068122,0.09846037,71819.0,71805.0,0.0002]
[1773571070386,0.06962042,71818.0,71805.0,0.0002]
[1773571070738,0.09844818,71817.0,71804.0,0.00165]
[1773571072126,0.09844818,71817.0,71805.0,0.0002]
[1773571072662,0.06962236,71816.0,71805.0,0.0002]
[1773571072895,0.09836641,71815.0,71805.0,0.0002]
[1773571074798,0.0696243,71814.0,71805.0,0.0002]
[1773571074954,0.09839076,71813.0,71805.0,0.0002]
[1773571077279,0.06962624,71812.0,71805.0,0.00012029]
[1773571078925,0.17700184,71812.0,71805.0,0.00012029]
[1773571079077,0.17700184,71812.0,71804.0,0.00025]
[1773571083294,0.17695836,71812.0,71804.0,0.00025]
[1773571083437,0.06962624,71812.0,71804.0,0.00025]
[1773571083638,0.11981284,71811.0,71804.0,0.00025]
[1773571084943,0.11981284,71811.0,71804.0,0.0004431]
[1773571084944,0.18944102,71810.0,71804.0,0.0004431]
[1773571087487,0.18944102,71810.0,71788.0,0.0015297]
[1773571087488,0.12661621,71809.0,71788.0,0.0015297]
[1773571087687,0.12661621,71809.0,71792.0,0.0014]
[1773571087887,0.12661621,71809.0,71790.0,0.06989756]
[1773571088104,0.12661621,71809.0,71795.0,0.0015297]
[1773571089024,0.12661621,71807.0,71796.0,0.0014]
[1773571089449,0.12661621,71807.0,71795.0,0.0001297]
[1773571089645,0.12661621,71807.0,71796.0,0.0014]
[1773571090224,0.12661621,71807.0,71795.0,0.0001297]
[1773571091033,0.07173387,71805.0,71795.0,0.0001297]
[1773571092219,0.07173387,71805.0,71795.0,0.0006861]
[1773571092629,0.06963206,71806.0,71795.0,0.0006861]
[1773571097702,0.06963206,71807.0,71795.0,0.0006861]
[1773571100843,0.06963206,71807.0,71794.0,0.0014]
[1773571100844,0.06722394,71806.0,71794.0,0.0014]
[1773571101048,0.06722394,71806.0,71794.0,0.0015071]
[1773571102066,0.06722394,71806.0,71794.0,0.0001071]
[1773571102259,0.06725684,71804.0,71794.0,0.0001071]
[1773571102758,0.06725684,71804.0,71788.0,0.0014]
[1773571102989,0.06725684,71804.0,71788.0,0.00146467]
[1773571103191,0.06725684,71804.0,71788.0,6.467e-05]
[1773571104151,0.06963497,71803.0,71788.0,6.467e-05]
[1773571104473,0.06723664,71802.0,71788.0,6.467e-05]
[1773571106055,0.06723664,71802.0,71780.0,0.07024726]
[1773571106056,0.06723664,71802.0,71761.0,0.26138073]
[1773571106391,0.06723664,71802.0,71762.0,0.0014]
[1773571106392,0.05380336,71800.0,71762.0,0.0014]
[1773571106734,0.05380336,71800.0,71780.0,0.0002]
[1773571108099,0.05380336,71800.0,71773.0,0.0002]
[1773571108100,0.05393686,71800.0,71775.0,0.00128]
[1773571108328,0.05901047,71798.0,71775.0,0.00128]
[1773571108599,0.05906047,71798.0,71775.0,0.00128]
[1773571108904,0.05906047,71798.0,71773.0,0.0002]
[1773571109206,0.05919397,71798.0,71773.0,0.0002]
[1773571110169,0.06964079,71797.0,71773.0,0.0002]
[1773571110392,0.05934094,71796.0,71773.0,0.0002]
[1773571110707,0.05934094,71794.0,71773.0,0.0002]
[1773571111076,0.05947444,71794.0,71773.0,0.0002]
[1773571113995,0.08429778,71792.0,71773.0,0.0002]
[1773571115195,0.0001335,71792.0,71773.0,0.0002]
[1773571116291,0.0014,71791.0,71773.0,0.0002]
[1773571116561,0.0014,71790.0,71773.0,0.0002]
[1773571116743,0.0001335,71792.0,71774.0,0.0696631]
[1773571116974,0.06964467,71793.0,71774.0,0.0696631]
[1773571118140,0.0696437,71796.0,71774.0,0.0696631]
[1773571119304,0.06963885,71799.0,71774.0,0.0696631]
[1773571120837,0.08434354,71797.0,71774.0,0.0696631]
[1773571121040,0.08434354,71797.0,71774.0,0.0698631]
[1773571122453,0.08434354,71797.0,71775.0,0.00136]
[1773571122658,0.08434354,71797.0,71774.0,0.0698631]
[1773571122863,0.08452354,71795.0,71776.0,0.07102076]
[1773571123039,0.08452354,71795.0,71774.0,0.0698631]
[1773571123040,0.08452354,71793.0,71774.0,0.0002]
[1773571123241,0.08452354,71793.0,71774.0,0.07122292]
[1773571123879,0.08452354,71793.0,71774.0,0.00156]
[1773571127422,0.08452354,71791.0,71774.0,0.00156]
[1773571130319,0.08495244,71789.0,71774.0,0.00156]
[1773571132232,0.06964952,71788.0,71774.0,0.00156]
[1773571132437,0.08711034,71787.0,71774.0,0.00156]
[1773571135347,0.06965146,71786.0,71774.0,0.00156]
[1773571136015,0.08711034,71785.0,71774.0,0.00156]
[1773571137471,0.0696534,71784.0,71774.0,0.00156]
[1773571139356,0.06965146,71786.0,71774.0,0.00156]
[1773571150005,0.0698665,71792.0,71775.0,0.06966213]
[1773571150139,0.04815474,71791.0,71775.0,0.06966213]
[1773571153947,0.04815474,71791.0,71774.0,0.07122213]
[1773571153948,0.10255536,71790.0,71776.0,0.0014]
[1773571158317,0.06964855,71789.0,71777.0,0.06966019]
[1773571161622,0.10255536,71788.0,71776.0,0.07106111]
[1773571164535,0.06965049,71787.0,71776.0,0.07106111]
[1773571164714,0.17220585,71787.0,71776.0,0.07106111]
[1773571164915,0.17220585,71787.0,71776.0,0.06966111]
[1773571165137,0.10255536,71786.0,71777.0,0.0014]
[1773571168348,0.17220785,71785.0,71777.0,0.0014]
[1773571168556,0.10255542,71784.0,71776.0,0.0014]
[1773571169277,0.06978693,71785.0,71776.0,0.0014]
[1773571170368,0.0001345,71785.0,71776.0,0.0014]
[1773571170570,0.06964952,71790.0,71777.0,0.06966019]
[1773571172549,0.06964663,71791.0,71777.0,0.06966019]
[1773571173453,0.06964663,71791.0,71777.0,0.07066019]
[1773571173640,0.06964663,71791.0,71777.0,0.06966019]
[1773571174062,0.06964663,71791.0,71777.0,0.06986019]
[1773571174309,0.06986664,71791.0,71777.0,0.06986019]
[1773571175286,0.06986664,71791.0,71778.0,0.0014]
[1773571182747,0.06986664,71791.0,71779.0,0.06965825]
[1773571187988,0.00022001,71791.0,71779.0,0.06965825]
[1773571189735,0.06986754,71791.0,71779.0,0.06965825]
[1773571190138,0.06986665,71791.0,71779.0,0.06965825]
[1773571191388,0.06986677,71791.0,71779.0,0.06965825]
[1773571191715,0.06986677,71791.0,71779.0,0.07065825]
[1773571191910,0.06986677,71791.0,71779.0,0.06965825]
[1773571192711,0.06964758,71790.0,71779.0,0.06965825]
[1773571193330,0.00022001,71791.0,71779.0,0.06965825]
[1773571193531,0.06986663,71791.0,71779.0,0.06965825]
[1773571197297,0.00022001,71791.0,71779.0,0.06965825]
[1773571198406,0.00022001,71791.0,71779.0,0.07065825]
[1773571198606,0.00022001,71791.0,71779.0,0.06965825]
[1773571200693,0.06986693,71791.0,71779.0,0.06965825]
[1773571202541,0.18116985,71791.0,71779.0,0.06965825]
[1773571211337,0.11152293,71791.0,71779.0,0.06965825]
[1773571211549,0.11152293,71791.0,71780.0,0.0014]
[1773571213356,0.11152293,71791.0,71781.0,0.06965631]
[1773571213586,0.18116956,71791.0,71781.0,0.06965631]
[1773571220375,0.11170928,71790.0,71781.0,0.06965631]
[1773571232074,0.18135697,71790.0,71781.0,0.06965631]
[1773571233888,0.00022001,71791.0,71782.0,0.0014]
[1773571234066,0.00022001,71792.0,71782.0,0.0014]
[1773571234271,0.06986574,71792.0,71779.0,0.06965756]
[1773571235592,0.00022001,71791.0,71779.0,0.06965756]
[1773571235893,0.00022001,71791.0,71779.0,0.07065756]
[1773571236113,0.00022001,71791.0,71779.0,0.06965756]
[1773571236244,0.00022001,71791.0,71779.0,0.07065756]
[1773571236671,0.00022001,71791.0,71779.0,0.06965756]
[1773571248485,0.00022001,71791.0,71779.0,0.06985756]
[1773571249879,0.00022001,71791.0,71779.0,0.07085756]
[1773571250969,0.00022001,71791.0,71779.0,0.06985756]
[1773571261044,0.02436193,71789.0,71769.0,0.0698675]
[1773571261212,0.02058834,71788.0,71770.0,0.0014]
[1773571262421,0.0699954,71791.0,71772.0,0.02136283]
[1773571262422,0.06964758,71790.0,71772.0,0.02136283]
[1773571264096,0.06964758,71790.0,71772.0,0.02236283]
[1773571264546,0.06964758,71790.0,71773.0,0.0910269]
[1773571265494,0.06964758,71790.0,71774.0,0.02136283]
[1773571266770,0.06964758,71790.0,71775.0,0.06966213]
[1773571266973,0.06964758,71790.0,71776.0,0.0014]
[1773571267279,0.00034841,71791.0,71777.0,0.02136283]
[1773571268661,0.00034841,71791.0,71777.0,0.02236283]
[1773571268894,0.00034841,71791.0,71778.0,0.06965922]
[1773571270135,0.06999537,71791.0,71778.0,0.06965922]
[1773571271053,0.00034841,71791.0,71778.0,0.06965922]
[1773571271267,0.06999503,71791.0,71778.0,0.06965922]
[1773571272388,0.00034841,71791.0,71778.0,0.06965922]
[1773571275922,0.09023592,71790.0,71778.0,0.06965922]
[1773571276222,0.02058834,71789.0,71778.0,0.06965922]
[1773571277106,0.06964952,71788.0,71778.0,0.06965922]
[1773571278284,0.06964863,71789.0,71778.0,0.06965922]
[1773571278411,0.06986864,71789.0,71778.0,0.06965922]
[1773571280937,0.02058834,71788.0,71779.0,0.0014]
[1773571283385,0.06986864,71789.0,71779.0,0.0710581]
[1773571284480,0.06986864,71789.0,71779.0,0.0014]
[1773571285844,0.06986864,71789.0,71779.0,0.0710582]
[1773571288502,0.06986856,71789.0,71779.0,0.0710582]
[1773571288907,0.06986884,71789.0,71779.0,0.0710582]
[1773571289824,0.06986884,71789.0,71779.0,0.09149136]
[1773571290249,0.06986884,71789.0,71780.0,0.02043316]
[1773571292681,0.00022001,71789.0,71781.0,0.06965631]
[1773571294179,0.06986871,71789.0,71781.0,0.06965631]
[1773571296730,0.06986871,71789.0,71782.0,0.0014]
[1773571301264,0.00022001,71789.0,71783.0,0.06965437]
[1773571301834,0.06986858,71789.0,71783.0,0.06965437]
[1773571302139,0.00022001,71789.0,71783.0,0.06965437]
[1773571302340,0.00029457,71789.0,71783.0,0.06965437]
[1773571304504,0.06994316,71789.0,71783.0,0.06965437]
[1773571307864,0.06999686,71791.0,71784.0,0.0202124]
[1773571308013,0.06999686,71791.0,71784.0,0.02030695]
[1773571309036,0.06964189,71796.0,71784.0,0.02030695]
[1773571309288,0.06964189,71796.0,71785.0,0.0200382]
[1773571309961,0.00022001,71789.0,71785.0,0.0200382]
[1773571310400,0.00022001,71789.0,71785.0,0.01988933]
[1773571310870,0.00022001,71797.0,71785.0,0.01988933]
[1773571311022,0.06986165,71797.0,71785.0,0.01988933]
[1773571312331,0.06986165,71797.0,71787.0,0.0200118]
[1773571312514,0.06986165,71797.0,71788.0,0.0014]
[1773571314068,0.06986165,71797.0,71789.0,0.01986992]
[1773571315895,0.06968299,71797.0,71789.0,0.08951797]
[1773571319433,4.135e-05,71797.0,71789.0,0.08951797]
[1773571321334,4.135e-05,71797.0,71789.0,0.06964805]
[1773571334751,0.06968109,71798.0,71789.0,0.06964805]
[1773571334987,0.06950229,71798.0,71789.0,0.06964805]
[1773571335305,0.06934072,71798.0,71789.0,0.06964805]
[1773571339614,0.06934072,71798.0,71789.0,0.06984805]
[1773571339813,0.06956073,71798.0,71789.0,0.06984805]
[1773571350715,0.06956073,71798.0,71790.0,0.0014]
[1773571354313,0.06956073,71798.0,71790.0,0.07104712]
[1773571355124,0.06956073,71798.0,71791.0,0.0014]
[1773571373062,0.06956073,71798.0,71786.0,0.0002]
[1773571373223,0.06956073,71798.0,71787.0,0.0014]
[1773571381961,0.06956073,71798.0,71788.0,0.06964952]
[1773571383763,0.06956073,71798.0,71788.0,0.06984952]
[1773571384485,0.06956073,71798.0,71789.0,0.0014]
[1773571392200,0.06956073,71798.0,71789.0,0.0016]
[1773571392398,0.0698608,71799.0,71789.0,0.07124849]
[1773571392607,0.0698608,71799.0,71790.0,0.04723296]
[1773571392986,0.06964079,71798.0,71790.0,0.04723296]
[1773571397393,0.06964079,71798.0,71790.0,0.06964746]
[1773571397608,0.06964079,71798.0,71791.0,0.04723296]
[1773571399435,0.0698608,71798.0,71791.0,0.04723296]
[1773571407515,0.0698608,71798.0,71791.0,0.04743296]
[1773571420719,0.0698608,71798.0,71786.0,0.0002]
[1773571420898,0.0698608,71798.0,71786.0,0.0014]
[1773571422132,0.0698608,71798.0,71787.0,0.04723296]
[1773571422353,0.06964079,71797.0,71787.0,0.04723296]